bitfinex/quotes_ETHUSD_20251230
["timestamp","ask_amount","ask_price","bid_price","bid_amount"]
[1767088320547,2.40256622,2985.7,2984.5,2.3279]
[1767088320760,0.879,2985.8,2984.5,2.3279]
[1767088320963,0.879,2985.8,2984.7,2.3279]
[1767088321183,3.2397,2985.8,2984.7,2.3279]
[1767088321677,6.58892794,2985.8,2984.7,2.3279]
[1767088323164,2.40256622,2985.7,2984.7,2.3279]
[1767088323880,0.04186622,2985.7,2984.7,2.3279]
[1767088324042,0.04186622,2985.7,2984.9,2.3279]
[1767088324043,2.3607,2985.6,2984.9,2.3279]
[1767088324247,2.40256903,2985.5,2984.9,2.3279]
[1767088324672,2.40256903,2985.5,2984.8,0.23279]
[1767088325080,0.879,2985.8,2984.9,2.3279]
[1767088325371,0.879,2985.8,2984.8,0.23279]
[1767088325372,0.879,2985.8,2985.1,2.3279]
[1767088326748,0.881,2985.8,2985.1,2.3279]
[1767088327656,0.002,2985.8,2985.1,2.3279]
[1767088328379,0.002,2986.0,2985.1,2.3279]
[1767088328745,2.3627,2986.0,2985.1,2.3279]
[1767088328960,2.3607,2985.9,2985.2,2.5862969]
[1767088329157,2.3607,2985.9,2985.2,2.3279]
[1767088329158,2.40256342,2985.9,2985.2,2.3279]
[1767088329981,2.3607,2985.9,2985.2,2.3279]
[1767088330494,5.75168366,2985.9,2985.2,2.3279]
[1767088330678,2.3607,2985.8,2984.3,0.001]
[1767088330855,2.3607,2985.6,2984.5,2.3279]
[1767088331054,0.04186903,2985.5,2984.5,2.3279]
[1767088331254,2.3607,2985.6,2984.5,2.3279]
[1767088331477,0.04186903,2985.5,2984.6,2.3279]
[1767088333986,5.75209925,2985.5,2984.6,2.3279]
[1767088334281,5.75209925,2985.5,2984.6,2.59448853]
[1767088334454,5.71036928,2985.4,2984.6,2.59448853]
[1767088334850,2.3607,2985.4,2984.6,2.59448853]
[1767088335290,2.3607,2985.6,2984.6,2.59448853]
[1767088335676,3.39125893,2985.7,2984.6,2.59448853]
[1767088335891,2.4964,2985.7,2984.8,2.3279]
[1767088336057,2.53826763,2985.6,2984.8,2.3279]
[1767088336754,3.39130463,2985.6,2984.8,2.3279]
[1767088336991,2.4964,2985.5,2984.8,2.3279]
[1767088338092,0.04187043,2985.4,2984.8,2.3279]
[1767088338264,2.83553074,2985.4,2984.5,2.4814]
[1767088338459,3.3754,2985.4,2984.5,2.4814]
[1767088339294,2.4964,2985.3,2984.5,2.4814]
[1767088342010,2.4964,2985.2,2984.3,0.001]
[1767088342298,6.6994999,2985.3,2983.9,2.4814]
[1767088342299,2.4964,2985.0,2983.9,2.4814]
[1767088342502,2.4964,2984.8,2983.9,2.4814]
[1767088343014,2.4964,2984.8,2983.5,2.4804]
[1767088343869,2.4964,2984.6,2983.5,2.4804]
[1767088344072,0.58468205,2984.5,2983.5,3.063738]
[1767088344271,0.879,2984.4,2983.5,3.063738]
[1767088346194,0.879,2984.8,2983.7,2.4804]
[1767088346371,2.4964,2985.0,2983.9,2.4804]
[1767088346577,2.4964,2985.0,2984.1,2.4804]
[1767088347482,2.4964,2985.0,2983.9,2.4804]
[1767088349302,5.88836307,2985.0,2983.9,2.4804]
[1767088349486,2.4964,2984.9,2983.9,2.4804]
[1767088349805,2.53827885,2984.8,2983.9,2.4804]
[1767088350007,2.53827885,2984.8,2984.1,2.4804]
[1767088350510,2.4964,2984.8,2984.1,2.4804]
[1767088352838,2.4964,2984.9,2984.0,2.718e-05]
[1767088353000,2.4964,2984.6,2983.4,4.2318736]
[1767088353207,2.4964,2984.6,2983.6,2.4804]
[1767088353392,3.3754,2984.6,2983.6,2.4804]
[1767088353593,2.4964,2984.5,2983.6,2.4804]
[1767088353911,2.4964,2984.5,2983.8,2.4804]
[1767088354607,0.879,2984.8,2983.8,2.4804]
[1767088354807,0.04188025,2984.7,2983.8,2.4804]
[1767088356179,2.53828025,2984.7,2983.8,2.4804]
[1767088356384,2.53828025,2984.7,2984.0,2.4804]
[1767088356577,0.04188025,2984.7,2984.0,2.4804]
[1767088356783,0.002,2985.3,2984.3,2.4804]
[1767088357020,0.002,2985.3,2984.5,2.4804]
[1767088357220,0.002,2985.3,2984.5,2.73179076]
[1767088357384,2.4984,2985.3,2984.5,0.25139076]
[1767088357584,2.4984,2985.3,2984.2,3.3594]
[1767088357908,2.54027183,2985.3,2984.3,0.03350869]
[1767088358292,2.4984,2985.3,2984.3,0.03350869]
[1767088358484,0.002,2985.3,2984.4,2.81969087]
[1767088359009,0.002,2985.3,2984.6,2.4804]
[1767088359511,2.4964,2985.2,2984.4,0.33929087]
[1767088359712,2.53827324,2985.2,2984.4,2.81969087]
[1767088361124,2.53827324,2985.2,2984.4,2.4804]
[1767088361717,2.4964,2985.1,2984.4,2.4804]
[1767088361919,2.53827352,2985.0,2984.4,2.4804]
[1767088362090,2.53827352,2985.0,2984.0,2.4804]
[1767088364900,3.2119,2984.9,2984.0,2.4804]
[1767088365090,2.37477352,2984.8,2984.0,2.4804]
[1767088365292,1.20437735,2984.9,2984.2,2.3956]
[1767088366993,0.879,2985.5,2984.4,2.395]
[1767088367315,2.40367043,2985.4,2984.6,2.395]
[1767088369122,5.71154709,2985.3,2984.6,2.395]
[1767088369628,3.34756179,2985.8,2984.2,0.879]
[1767088369629,5.71129582,2985.6,2984.8,2.395]
[1767088369924,0.57112958,2985.5,2984.8,2.395]
[1767088370129,0.04187043,2985.4,2984.8,2.395]
[1767088370629,2.3618,2985.3,2984.3,2.42850869]
[1767088370815,0.04387043,2985.4,2984.0,0.001]
[1767088370816,2.40367324,2985.2,2984.4,0.879]
[1767088371001,2.40367324,2985.2,2984.4,3.274]
[1767088371412,2.3618,2985.1,2984.4,2.395]
[1767088371611,0.04187352,2985.0,2984.4,2.395]
[1767088372321,2.40367352,2985.0,2984.4,2.395]
[1767088373234,2.40367352,2985.0,2984.0,0.03451206]
[1767088373440,0.24056732,2985.2,2984.1,2.395]
[1767088373606,0.24056732,2985.2,2984.3,2.395]
[1767088373806,3.59042817,2985.2,2984.5,2.395]
[1767088374015,5.95222817,2985.2,2984.5,2.395]
[1767088374330,3.59042817,2985.2,2984.5,2.395]
[1767088374507,2.40367352,2985.1,2984.2,2.395]
[1767088374704,2.76271634,2985.1,2984.2,2.395]
[1767088375123,2.76271634,2985.1,2984.0,0.001]
[1767088375537,2.3618,2984.9,2984.0,0.001]
[1767088375819,2.3618,2984.7,2984.0,2.396]
[1767088376044,2.3618,2984.7,2984.0,2.7235]
[1767088377324,0.04187352,2984.9,2984.0,2.7235]
[1767088377529,3.3918796,2985.1,2984.2,2.395]
[1767088377728,2.3618,2985.0,2984.2,2.395]
[1767088377935,2.40367352,2984.9,2984.2,2.395]
[1767088378452,2.97904148,2984.9,2984.2,2.395]
[1767088378747,2.3618,2984.8,2984.2,2.395]
[1767088378951,0.04187352,2984.7,2984.2,2.395]
[1767088381036,2.41607352,2984.7,2984.0,2.2967]
[1767088381221,2.3742,2984.7,2984.1,2.32921094]
[1767088381419,2.3742,2985.0,2984.1,2.52872109]
[1767088381621,0.04187352,2984.9,2984.1,2.52872109]
[1767088382451,2.3742,2984.8,2984.0,0.001]
[1767088382620,2.3742,2984.6,2984.0,0.001]
[1767088383159,2.3742,2984.6,2983.9,0.03351318]
[1767088383339,2.3742,2984.6,2984.0,2.2957]
[1767088383536,6.70108797,2984.6,2983.4,0.001]
[1767088383729,2.3742,2984.4,2983.4,0.88]
[1767088384770,2.3742,2984.4,2983.0,0.001]
[1767088384943,2.3742,2984.4,2983.1,0.879]
[1767088385125,2.3742,2984.1,2983.0,0.001]
[1767088385329,2.3742,2984.1,2982.8,0.001]
[1767088385536,2.3742,2984.0,2982.9,0.335464]
[1767088385740,2.3742,2984.0,2982.8,0.001]
[1767088386233,2.3742,2984.0,2982.9,2.2957]
[1767088388149,2.3742,2983.9,2982.9,2.2957]
[1767088388355,3.2532,2983.8,2982.9,2.2957]
[1767088388558,0.879,2983.8,2982.9,2.2957]
[1767088388759,0.879,2983.9,2983.1,2.2957]
[1767088390548,0.879,2983.9,2983.2,2.2957]
[1767088393795,3.2532,2983.9,2983.2,2.2957]
[1767088394256,3.29509148,2983.9,2983.2,2.2957]
[1767088394456,2.3742,2983.8,2983.2,2.2957]
[1767088394656,2.3742,2983.8,2983.2,3.03897239]
[1767088395086,2.3742,2983.8,2983.3,2.2957]
[1767088396091,0.92089148,2983.9,2983.3,2.2957]
[1767088398917,3.28499148,2983.9,2983.3,2.2957]
[1767088402554,3.2431,2983.9,2983.3,2.2957]
[1767088402848,3.2431,2983.9,2983.4,2.489]
[1767088403161,2.3641,2984.4,2983.8,4.90735385]
[1767088403440,2.3641,2984.6,2984.1,2.489]
[1767088403639,0.04188306,2984.5,2984.1,2.489]
[1767088403812,2.3641,2984.4,2983.6,4.90735385]
[1767088404017,2.3641,2984.4,2983.7,3.538e-05]
[1767088404231,2.40598165,2984.6,2983.8,2.489]
[1767088404422,0.879,2984.7,2983.9,2.489]
[1767088405230,2.3641,2984.8,2983.9,2.489]
[1767088405818,0.879,2985.0,2983.9,2.489]
[1767088406025,0.879,2985.0,2984.1,2.489]
[1767088406334,2.40797464,2985.1,2984.1,2.489]
[1767088406335,0.04387464,2985.1,2984.1,2.489]
[1767088406514,2.3661,2985.1,2984.1,2.489]
[1767088406856,0.002,2984.8,2984.1,2.489]
[1767088407015,0.04187604,2985.0,2984.0,0.58404034]
[1767088407332,2.3661,2985.1,2984.1,2.88253479]
[1767088407538,2.3661,2985.1,2984.2,2.489]
[1767088408136,0.002,2985.1,2984.2,2.489]
[1767088408930,3.23741516,2985.3,2984.1,0.39353479]
[1767088409116,3.23741516,2985.3,2984.2,2.489]
[1767088409117,0.04187324,2985.2,2984.2,2.489]
[1767088411932,2.40597324,2985.2,2984.2,2.489]
[1767088412118,2.3641,2985.1,2984.2,2.489]
[1767088412314,2.3641,2984.9,2984.2,2.489]
[1767088412513,0.04187885,2984.8,2984.2,2.489]
[1767088413324,0.87331516,2985.3,2984.4,2.489]
[1767088413647,0.04187324,2985.2,2984.4,2.489]
[1767088414013,0.002,2985.4,2984.2,3.368]
[1767088414222,0.002,2985.4,2984.3,2.52250869]
[1767088414419,0.002,2985.4,2984.5,2.489]
[1767088414948,0.002,2984.8,2984.5,2.489]
[1767088417771,2.3641,2985.1,2984.5,2.489]
[1767088418173,2.3641,2984.9,2984.5,2.489]
[1767088419770,2.3641,2984.8,2984.1,2.489]
[1767088419969,2.3641,2984.7,2984.1,2.489]
[1767088420172,2.3641,2984.7,2983.7,3.538e-05]
[1767088420376,2.3641,2984.7,2983.7,2.52255081]
[1767088421440,2.3641,2984.7,2983.7,2.52255081]
[1767088422271,2.3641,2984.7,2983.7,2.48903538]
[1767088422997,3.35043083,2984.7,2983.7,2.48903538]
[1767088423286,2.76507651,2984.6,2983.7,2.48903538]
[1767088423489,3.2431,2984.5,2983.7,2.48903538]
[1767088423846,3.02543426,2984.8,2983.9,2.489]
[1767088424168,2.3661,2984.8,2983.9,2.489]
[1767088425579,2.3641,2984.7,2983.9,2.489]
[1767088426156,2.3641,2984.7,2983.7,3.538e-05]
[1767088426358,2.3641,2984.7,2983.5,4.93237182]
[1767088426575,2.3641,2984.7,2983.5,8.28410602]
[1767088426888,2.3641,2984.7,2983.6,0.9163106]
[1767088429194,3.35043401,2984.7,2983.6,0.9163106]
[1767088429361,2.4231,2984.6,2983.5,4.93237182]
[1767088429559,2.4231,2984.6,2983.5,1.05215414]
[1767088430688,3.35054163,2984.6,2983.5,1.05215414]
[1767088431185,3.34990955,2985.2,2983.5,1.05215414]
[1767088431186,3.34984726,2985.3,2984.4,4.9045036]
[1767088431360,3.35167929,2985.4,2984.4,5.39495396]
[1767088431562,3.35167929,2985.4,2984.5,2.3701]
[1767088431988,0.002,2984.8,2984.5,2.3701]
[1767088434478,0.002,2985.4,2984.5,2.3701]
[1767088434771,0.67209291,2985.4,2984.5,2.3701]
[1767088435980,4.02175015,2985.4,2984.5,2.3701]
[1767088436179,0.67209291,2985.4,2984.5,2.3701]
[1767088436891,4.02175863,2985.4,2984.5,2.3701]
[1767088438289,0.67209291,2985.4,2984.5,2.3701]
[1767088438494,3.35164184,2985.4,2984.6,2.371]
[1767088440600,0.002,2985.4,2984.6,2.371]
[1767088445700,9.6612305,2985.8,2984.9,2.371]
[1767088445701,9.65554566,2985.8,2984.9,2.371]
[1767088446712,6.30631516,2985.8,2984.9,2.371]
[1767088447199,3.34910624,2985.9,2984.9,2.371]
[1767088447386,4.22996825,2986.0,2985.1,2.371]
[1767088447901,3.35096825,2986.0,2985.1,2.371]
[1767088448405,0.002,2985.8,2985.1,2.371]
[1767088450072,0.002,2985.8,2985.1,2.40449971]
[1767088450287,0.002,2985.8,2985.3,2.371]
[1767088454312,0.002,2985.8,2984.7,2.371]
[1767088456989,0.002,2985.8,2985.0,2.4039]
[1767088457290,0.002,2985.8,2985.2,2.4039]
[1767088458527,0.002,2986.0,2985.3,2.4039]
[1767088461842,0.004,2986.0,2985.3,2.4039]
[1767088462127,0.67414825,2986.0,2985.3,2.4039]
[1767088462326,0.002,2985.9,2985.3,2.4039]
[1767088462912,0.004,2985.8,2985.3,2.4039]
[1767088463692,0.002,2985.7,2984.9,0.88]
[1767088463933,0.002,2985.7,2985.0,2.4039]
[1767088464815,0.002,2985.6,2985.0,2.4039]
[1767088468398,0.002,2985.6,2984.9,0.001]
[1767088468601,0.002,2985.6,2984.9,2.4049]
[1767088469743,0.002,2985.6,2984.6,2.4039]
[1767088470333,0.001,2985.5,2984.6,2.4039]
[1767088470638,0.001,2985.4,2984.6,2.40290202]
[1767088471237,0.002,2985.2,2984.5,0.001]
[1767088471526,0.002,2985.1,2984.5,2.4049]
[1767088474154,0.002,2985.1,2984.5,0.001]
[1767088474304,0.001,2984.7,2983.9,2.4039]
[1767088474506,4.9045036,2984.8,2983.9,2.4039]
[1767088474507,0.001,2984.5,2983.9,2.4039]
[1767088474845,0.001,2984.4,2983.3,0.001]
[1767088475019,0.49055036,2984.6,2983.3,0.001]
[1767088475020,0.0057,2984.2,2983.3,2.4049]
[1767088476121,3.35109413,2984.1,2983.3,2.4049]
[1767088476344,0.33980941,2984.0,2983.3,2.4049]
[1767088476534,0.0047,2984.0,2983.3,2.4049]
[1767088478515,3.35596993,2984.0,2983.3,2.4049]
[1767088478714,0.0047,2983.9,2983.3,2.4049]
[1767088480568,0.0047,2983.9,2983.5,2.4039]
[1767088482838,0.879,2984.1,2983.5,2.4039]
[1767088483046,1.30199841,2984.1,2983.5,2.4039]
[1767088483537,1.30669841,2984.1,2983.5,2.4039]
[1767088483932,0.42769841,2984.1,2983.5,2.4039]
[1767088484109,0.0047,2984.1,2983.5,2.4049]
[1767088485844,0.0047,2984.1,2983.3,2.4049]
[1767088488632,3.35112306,2984.1,2983.3,2.4049]
[1767088488827,0.0037,2984.0,2983.3,2.4049]
[1767088489751,0.0037,2984.0,2983.1,0.001]
[1767088489922,0.0027,2983.8,2983.2,2.2513]
[1767088491253,0.0027,2983.8,2983.1,0.001]
[1767088491630,0.0027,2983.8,2983.1,2.2523]
[1767088491950,0.0027,2983.8,2983.3,0.001]
[1767088492324,0.0027,2983.8,2983.1,2.2523]
[1767088495160,6.69702302,2984.1,2983.2,2.2513]
[1767088495456,0.7576023,2984.0,2983.2,2.2513]
[1767088496763,1.6366023,2984.0,2983.2,2.2513]
[1767088497854,4.98790312,2984.0,2983.2,2.2513]
[1767088498030,8.33920394,2984.0,2983.2,2.2513]
[1767088498940,4.98790312,2984.0,2983.2,2.2513]
[1767088500356,8.34120394,2984.0,2983.2,2.2513]
[1767088500564,0.83412039,2983.9,2983.2,2.2513]
[1767088502265,0.002,2984.0,2983.7,2.3639]
[1767088503874,9.65700234,2984.5,2983.1,3.35321391]
[1767088503875,6.30631516,2984.5,2983.8,4.90720498]
[1767088504059,0.02687179,2985.1,2984.1,2.3639]
[1767088504060,0.001,2984.7,2984.1,2.3639]
[1767088504873,6.30631516,2985.1,2984.1,2.3639]
[1767088505039,0.001,2984.9,2984.1,2.3639]
[1767088509156,0.001,2984.8,2984.1,2.3639]
[1767088510183,0.001,2984.8,2983.2,3.3520757]
[1767088510344,0.001,2984.6,2983.6,2.3639]
[1767088510665,0.001,2984.4,2983.6,2.3639]
[1767088515750,4.22967582,2984.5,2983.6,2.3639]
[1767088515751,0.001,2984.2,2983.6,2.3639]
[1767088519469,0.001,2984.2,2983.2,2.4884]
[1767088519874,0.001,2984.1,2983.2,2.4884]
[1767088520059,0.001,2983.9,2983.2,2.4884]
[1767088520267,0.33519818,2984.0,2983.0,0.001]
[1767088520268,0.001,2983.7,2983.0,0.001]
[1767088520484,0.001,2983.1,2982.7,0.001]
[1767088520781,0.4918205,2983.1,2982.7,0.001]
[1767088520989,0.001,2983.1,2982.7,0.001]
[1767088521955,0.879,2983.6,2982.9,2.4884]
[1767088522180,0.879,2983.6,2983.1,2.4884]
[1767088522583,0.88,2983.6,2983.1,2.4884]
[1767088526190,0.001,2983.5,2983.1,2.4884]
[1767088526386,0.42416689,2983.4,2983.1,2.4884]
[1767088526684,0.001,2983.3,2982.9,2.4884]
[1767088526984,0.001,2983.3,2982.8,0.001]
[1767088527483,0.001,2983.3,2982.8,2.4894]
[1767088530399,0.001,2983.5,2982.9,2.4884]
[1767088531400,0.001,2983.5,2983.1,2.4884]
[1767088533375,0.002,2983.3,2983.1,2.4884]
[1767088536113,0.882,2983.7,2983.0,2.4884]
[1767088536395,0.003,2983.7,2983.2,2.4884]
[1767088541673,0.005,2983.7,2983.2,2.4884]
[1767088542507,0.003,2983.6,2983.2,2.4884]
[1767088542802,0.002,2983.7,2983.2,2.4884]
[1767088543005,0.002,2983.7,2983.2,2.73734]
[1767088543590,0.005,2983.7,2983.2,2.73734]
[1767088543793,0.005,2983.7,2983.2,2.4884]
[1767088544808,0.002,2983.7,2983.2,2.4884]
[1767088545009,0.003,2983.6,2983.2,2.4884]
[1767088551586,0.002,2983.7,2983.3,0.03351992]
[1767088551786,0.002,2983.7,2983.4,2.2684]
[1767088552515,7.19031516,2984.0,2983.2,2.2684]
[1767088552697,7.19031516,2984.0,2983.4,2.2684]
[1767088554713,0.005,2983.9,2983.4,2.2684]
[1767088555786,0.005,2984.2,2983.7,2.2684]
[1767088556202,3.35599421,2984.2,2983.7,2.2684]
[1767088556413,0.005,2984.1,2983.7,2.2684]
[1767088557005,0.002,2983.9,2983.7,2.2684]
[1767088561014,0.005,2984.1,2983.7,2.2684]
[1767088561318,0.009,2984.3,2983.7,2.2684]
[1767088561824,0.007,2984.2,2983.7,2.2684]
[1767088562002,0.007,2984.2,2983.4,2.3583]
[1767088563217,0.007,2984.1,2983.4,2.3583]
[1767088565634,0.007,2984.1,2983.4,2.3593]
[1767088565995,0.009,2984.1,2983.4,2.3593]
[1767088566195,0.009,2984.1,2983.6,2.3583]
[1767088567246,0.009,2984.1,2983.5,0.25895922]
[1767088567247,0.002,2984.5,2984.1,2.3583]
[1767088567412,0.009,2984.7,2984.0,4.90809854]
[1767088567613,0.009,2984.7,2984.1,2.3583]
[1767088569348,0.00031516,2985.3,2984.8,2.3583]
[1767088569543,0.002,2985.6,2984.7,2.3583]
[1767088570242,0.002,2985.6,2984.8,0.009]
[1767088571923,0.002,2985.6,2984.9,2.3583]
[1767088576155,0.002,2985.6,2985.0,2.3306]
[1767088576320,0.002,2985.6,2985.0,2.56733]
[1767088578253,0.002,2985.5,2985.0,2.3306]
[1767088580150,0.002,2985.5,2984.8,2.3396]
[1767088581153,0.002,2985.6,2984.8,2.3396]
[1767088581154,0.002,2985.6,2984.8,2.37310308]
[1767088582548,0.002,2985.8,2984.9,2.3306]
[1767088582750,0.002,2985.8,2984.8,0.04250308]
[1767088582751,0.002,2985.8,2985.1,2.3306]
[1767088583653,0.006,2985.7,2985.1,2.3306]
[1767088584065,0.006,2985.7,2984.8,2.3396]
[1767088584467,3.34931667,2985.7,2984.8,0.003]
[1767088584763,3.34931667,2985.7,2984.9,2.3306]
[1767088584972,0.67005415,2985.6,2984.9,2.3306]
[1767088585132,0.67005415,2985.6,2984.8,0.003]
[1767088586447,4.01951972,2985.6,2984.8,0.003]
[1767088586758,4.01951972,2985.6,2984.8,2.3336]
[1767088587630,0.67005415,2985.6,2984.8,2.3336]
[1767088587824,0.002,2985.8,2984.8,2.56696]
[1767088588160,3.35127397,2985.8,2984.8,2.56696]
[1767088588354,0.002,2985.8,2984.8,2.56696]
[1767088588959,0.002,2985.8,2985.0,7.23869854]
[1767088589142,0.002,2985.8,2985.1,1.60622005]
[1767088589454,0.002,2986.0,2985.1,1.63971976]
[1767088590444,0.002,2986.0,2985.2,2.3306]
[1767088593433,2.4671,2986.6,2985.6,4.90809854]
[1767088593633,2.4671,2986.5,2985.7,2.82140985]
[1767088594158,6.69657804,2986.6,2985.2,2.3306]
[1767088594159,2.4671,2986.3,2985.2,2.3306]
[1767088594343,2.4671,2986.3,2985.2,2.36409859]
[1767088594536,2.4671,2986.3,2985.2,2.3306]
[1767088595688,6.69747504,2986.2,2985.2,2.3306]
[1767088595966,2.4671,2986.1,2985.4,2.3306]
[1767088596457,3.04868375,2986.1,2985.4,2.3306]
[1767088596832,2.4671,2985.9,2985.4,2.3306]
[1767088597232,0.002,2986.0,2985.4,2.3306]
[1767088597759,2.4671,2986.3,2985.2,2.36409859]
[1767088598268,2.4671,2986.2,2985.2,2.36409859]
[1767088598473,2.4671,2986.2,2985.4,2.3306]
[1767088598635,2.4671,2986.2,2985.5,2.3306]
[1767088600865,2.4671,2986.1,2985.5,2.3306]
[1767088601063,2.4671,2985.7,2984.9,2.3306]
[1767088601438,2.4671,2986.4,2985.5,4.8999067]
[1767088601639,2.4671,2986.4,2985.6,2.3306]
[1767088602080,2.4671,2986.1,2985.1,0.879]
[1767088602377,0.01601161,2986.0,2984.9,0.02550195]
[1767088602676,0.01601161,2986.0,2985.0,4.8999067]
[1767088602677,0.00801161,2986.0,2985.0,4.8999067]
[1767088602835,0.00801161,2986.0,2985.1,0.49254086]
[1767088603170,0.879,2987.2,2985.2,2.36409859]
[1767088603468,5.7789067,2987.2,2985.9,4.8999067]
[1767088603844,5.7789067,2987.2,2985.8,2.3306]
[1767088604159,0.57789067,2987.1,2985.8,2.3306]
[1767088604363,4.8999067,2986.8,2985.7,4.8999067]
[1767088604537,4.8999067,2986.8,2985.5,7.2305067]
[1767088604738,0.002,2986.1,2985.5,7.2305067]
[1767088604949,0.002,2986.1,2985.5,2.3306]
[1767088605150,0.002,2986.1,2985.4,0.001]
[1767088605565,0.002,2986.1,2985.5,2.3306]
[1767088611450,3.34815991,2986.8,2985.4,0.001]
[1767088611745,0.002,2986.7,2985.5,2.316]
[1767088612270,0.002,2986.7,2985.6,0.0334941]
[1767088612455,0.002,2986.7,2985.7,2.316]
[1767088613361,0.002,2986.6,2985.7,2.316]
[1767088613566,0.002,2986.7,2985.9,2.316]
[1767088613567,0.881,2986.7,2985.9,2.316]
[1767088613877,0.002,2986.5,2985.9,2.316]
[1767088614285,0.02687179,2986.5,2985.5,2.316]
[1767088614486,0.002,2986.4,2985.5,2.316]
[1767088616479,0.002,2986.3,2985.5,2.316]
[1767088616681,0.002,2986.2,2985.5,2.316]
[1767088616878,0.002,2986.0,2985.5,2.316]
[1767088617184,0.002,2986.0,2985.4,0.001]
[1767088617753,0.002,2985.9,2985.4,0.001]
[1767088619053,3.34873752,2986.2,2985.5,2.4071]
[1767088619261,1.3146145,2986.1,2985.5,2.4071]
[1767088619575,3.35073752,2986.2,2985.5,2.4071]
[1767088619780,0.879,2986.1,2985.5,2.4071]
[1767088620566,0.879,2986.1,2985.5,2.4081]
[1767088620884,0.002,2986.0,2985.5,2.4081]
[1767088622687,0.002,2986.0,2985.4,0.001]
[1767088622893,7.57683508,2986.1,2985.2,2.4071]
[1767088622894,0.75788351,2985.9,2985.2,2.4071]
[1767088623187,4.10704537,2985.9,2985.2,2.4071]
[1767088623698,7.45620723,2985.9,2985.2,2.4071]
[1767088623863,4.10704537,2985.9,2985.2,2.4071]
[1767088624064,7.45620723,2985.9,2985.2,2.4071]
[1767088624265,0.74562072,2985.8,2985.2,2.4071]
[1767088625186,0.74562072,2985.8,2984.8,0.001]
[1767088625187,3.34929832,2985.7,2984.9,2.4071]
[1767088625377,0.879,2985.6,2984.9,2.4071]
[1767088627294,3.34952269,2985.5,2984.8,0.001]
[1767088627894,6.69904538,2985.5,2984.8,0.001]
[1767088628098,0.75780454,2985.4,2984.8,0.001]
[1767088629094,0.75780454,2985.4,2984.9,0.001]
[1767088629292,3.34974709,2985.3,2984.9,0.001]
[1767088629497,6.69949418,2985.3,2984.8,0.001]
[1767088630395,0.02687179,2985.2,2984.8,0.001]
[1767088630597,1.5516366,2985.1,2984.3,0.001]
[1767088631301,6.7001675,2985.0,2984.3,0.001]
[1767088632300,3.35008375,2985.0,2984.3,0.001]
[1767088632490,6.7001675,2985.0,2984.3,0.001]
[1767088635800,3.35008375,2985.0,2984.3,0.001]
[1767088635987,0.49017203,2984.9,2984.3,0.001]
[1767088636397,0.879,2984.8,2984.3,0.001]
[1767088636606,0.879,2984.7,2984.3,0.001]
[1767088639479,0.879,2984.7,2984.3,2.4434]
[1767088639903,0.49017203,2984.9,2984.3,2.4434]
[1767088640103,0.879,2984.7,2984.3,2.4434]
[1767088643376,0.879,2984.7,2984.3,0.001]
[1767088644511,4.22945879,2984.7,2984.3,0.001]
[1767088645081,0.879,2984.7,2984.3,0.001]
[1767088645309,4.22942381,2984.7,2984.3,0.001]
[1767088645508,5.14552697,2984.7,2984.3,0.001]
[1767088651319,1.79510316,2984.7,2984.3,0.001]
[1767088651614,0.879,2984.7,2984.3,0.001]
[1767088652686,3.35030834,2984.8,2984.3,0.001]
[1767088652884,0.879,2984.7,2984.3,2.4434]
[1767088656419,0.879,2984.7,2984.3,0.001]
[1767088670034,0.002,2984.8,2984.4,2.4774]
[1767088670238,0.879,2984.7,2984.4,2.4774]
[1767088671230,0.879,2984.7,2984.3,0.001]
[1767088672441,1.30212,2984.7,2984.3,0.001]
[1767088673509,0.879,2984.7,2984.3,0.001]
[1767088675110,0.002,2984.8,2984.3,2.4784]
[1767088675337,0.879,2984.7,2984.3,2.4784]
[1767088675637,0.879,2984.7,2984.3,0.001]
[1767088676016,0.002,2984.8,2984.3,0.001]
[1767088676221,0.879,2984.6,2984.3,0.001]
[1767088676737,0.002,2984.8,2984.3,0.001]
[1767088677040,0.879,2984.6,2984.3,0.001]
[1767088679640,0.879,2984.6,2984.3,2.299]
[1767088680548,0.879,2984.6,2984.3,0.001]
[1767088684352,5.78382751,2984.6,2983.7,0.001]
[1767088684552,0.57838275,2984.5,2983.7,0.001]
[1767088684756,0.57838275,2984.5,2983.7,2.299]
[1767088685052,0.002,2984.8,2983.9,2.298]
[1767088685355,0.879,2984.7,2984.1,2.298]
[1767088685867,0.002,2984.8,2984.1,2.298]
[1767088686052,0.002,2984.8,2984.2,2.33150981]
[1767088686247,0.879,2984.7,2984.2,2.33150981]
[1767088686831,0.879,2984.7,2984.3,0.001]
[1767088687150,0.879,2984.6,2984.3,2.299]
[1767088687968,0.002,2984.8,2984.3,2.299]
[1767088688454,0.879,2984.7,2984.3,2.299]
[1767088688840,0.002,2984.8,2984.3,2.299]
[1767088689056,3.80631516,2985.3,2984.7,0.01736844]
[1767088689463,0.02687179,2985.5,2984.7,0.01736844]
[1767088689757,0.881,2985.6,2984.7,0.01736844]
[1767088689933,0.02687179,2985.5,2984.7,0.01736844]
[1767088691762,0.02687179,2985.5,2984.7,2.31536844]
[1767088692563,0.45260029,2985.5,2984.7,2.31536844]
[1767088693267,0.45460029,2985.5,2984.7,2.31536844]